bitfinex-derivatives/quotes_ETHF0:USTF0_20250115
["timestamp","ask_amount","ask_price","bid_price","bid_amount"]
[1736972591660,0.57605,3470.7,3470.6,0.9129]
[1736972591852,0.57612,3470.3,3470.1,3.2078]
[1736972592053,2.2662122,3470.4,3469.9,40.8]
[1736972592254,2.2662122,3470.4,3469.8,1.7611]
[1736972592560,2.2662122,3470.4,3469.8,0.8837]
[1736972592561,0.57618,3469.9,3469.8,0.8837]
[1736972593247,5.4740122,3470.1,3469.2,0.95]
[1736972593451,2.2662122,3469.6,3469.2,0.95]
[1736972593654,0.57629,3469.2,3469.1,3.2078]
[1736972593954,2.2662122,3469.3,3468.7,0.57638]
[1736972593955,0.57634,3469.0,3468.7,0.57638]
[1736972594160,2.2662122,3469.0,3468.6,0.57639]
[1736972594757,2.2662122,3469.0,3468.5,3.2078]
[1736972595061,0.9375,3469.2,3468.0,3.2078]
[1736972595062,2.2662122,3468.7,3468.0,3.2078]
[1736972595251,2.2662122,3468.4,3468.1,0.57647]
[1736972595561,1.5138,3469.2,3468.1,0.57647]
[1736972595758,0.9375,3469.2,3468.6,3.2078]
[1736972596059,0.9375,3469.2,3468.9,0.57633]
[1736972596257,0.9375,3469.2,3468.7,0.57638]
[1736972596459,3.2078,3469.0,3468.4,0.57642]
[1736972596652,2.71439613,3468.7,3468.2,4.73425]
[1736972596853,3.2078,3468.6,3467.8,3.2078]
[1736972597053,2.71439613,3468.3,3467.8,3.2078]
[1736972597253,0.57648,3468.1,3467.8,3.2078]
[1736972597448,0.57648,3468.2,3467.8,3.2078]
[1736972597656,0.57648,3468.1,3467.8,3.2078]
[1736972598052,2.71439613,3468.3,3467.8,3.2078]
[1736972598258,0.57651,3467.9,3467.8,3.2078]
[1736972598460,0.9588,3468.2,3467.8,3.2078]
[1736972598660,0.57649,3468.1,3467.8,3.2078]
[1736972598861,0.5765,3468.0,3467.8,3.2078]
[1736972599056,0.95559905,3468.2,3467.8,3.2078]
[1736972599265,0.57651,3467.9,3467.8,3.2078]
[1736972599456,2.71439613,3467.9,3467.4,44.0078]
[1736972599767,3.29090613,3467.9,3467.5,0.57657]
[1736972600455,2.71439613,3467.9,3467.4,44.58438]
[1736972600656,0.57656,3467.7,3467.4,40.8]
[1736972600961,0.57657,3467.6,3467.4,40.8]
[1736972601162,2.71439613,3467.9,3467.4,40.8]
[1736972601163,3.2078,3467.7,3467.4,40.8]
[1736972601462,1.44098,3468.7,3467.4,40.8]
[1736972601463,3.2078,3468.3,3468.1,0.57647]
[1736972601763,3.2078,3468.3,3468.0,0.57649]
[1736972602162,3.78426,3468.3,3467.7,0.57654]
[1736972602364,3.78426,3468.3,3467.8,0.57652]
[1736972602566,0.57653,3467.9,3467.6,3.2078]
[1736972602860,2.71439613,3468.2,3467.4,40.8]
[1736972603065,3.29085613,3468.2,3467.8,0.57652]
[1736972603367,2.71439613,3468.2,3467.4,40.8]
[1736972603566,0.57648,3468.1,3467.7,0.57653]
[1736972603758,2.71439613,3468.2,3467.4,40.8]
[1736972603959,2.71439613,3468.2,3467.7,0.57653]
[1736972603960,3.29086613,3468.2,3467.7,0.57653]
[1736972604164,0.57648,3468.1,3467.7,0.57653]
[1736972604367,0.57648,3468.1,3467.7,0.57654]
[1736972604866,3.29086613,3468.2,3467.7,0.57654]
[1736972605065,0.57648,3468.1,3467.7,0.57654]
[1736972605277,0.57649,3468.1,3467.4,40.8]
[1736972605571,0.57639,3468.7,3468.3,0.57644]
[1736972605761,0.9247,3468.8,3468.5,0.5764]
[1736972605960,3.2078,3469.0,3468.7,0.57636]
[1736972606170,3.2078,3469.5,3468.4,3.2078]
[1736972606369,1.7745,3469.6,3469.0,0.57631]
[1736972606665,0.57624,3469.5,3469.0,0.57631]
[1736972607169,0.57627,3469.4,3468.7,3.2078]
[1736972607373,0.57627,3469.4,3469.1,0.57631]
[1736972607759,2.35074,3469.6,3469.2,0.57629]
[1736972607956,2.35074,3469.6,3468.7,4.64875]
[1736972608158,1.7745,3469.6,3468.7,3.2078]
[1736972608764,0.57625,3469.5,3469.2,0.57629]
[1736972608962,0.57625,3469.5,3468.7,3.2078]
[1736972608963,0.8673,3469.6,3469.1,3.2078]
[1736972609156,3.2078,3470.0,3469.1,3.2078]
[1736972609362,4.1285,3470.0,3469.3,0.57627]
[1736972609564,0.57618,3469.9,3469.3,0.57628]
[1736972609763,4.1285,3470.0,3469.0,3.2078]
[1736972609970,4.1285,3470.0,3469.3,0.57627]
[1736972610158,4.1285,3470.0,3469.1,40.8]
[1736972610159,0.57623,3469.6,3469.2,0.57628]
[1736972610471,0.57624,3469.6,3469.2,0.57628]
[1736972610671,0.57624,3469.6,3469.3,0.57627]
[1736972610875,0.57622,3469.7,3469.3,0.57627]
[1736972611375,0.57623,3469.6,3469.3,0.57627]
[1736972611569,4.1285,3470.0,3469.3,0.57627]
[1736972611772,0.57622,3469.7,3469.3,0.57627]
[1736972611975,4.1285,3470.0,3469.3,0.57627]
[1736972612173,0.57623,3469.6,3469.2,0.57628]
[1736972612476,4.1285,3470.0,3469.1,4.1016]
[1736972612877,2.71439613,3469.3,3468.7,3.2078]
[1736972613269,0.57632,3469.1,3468.7,3.78417]
[1736972613575,0.57632,3469.1,3468.0,4.55109613]
[1736972613576,0.57639,3468.7,3468.2,3.2078]
[1736972613774,0.57637,3468.8,3468.4,0.57642]
[1736972613978,5.58744,3469.2,3468.3,0.57643]
[1736972613979,0.57631,3469.1,3468.3,0.57643]
[1736972614169,4.1467,3469.2,3468.2,3.2078]
[1736972614370,0.57637,3468.8,3468.5,0.5764]
[1736972614571,4.1467,3469.2,3468.4,0.57641]
[1736972614770,0.57637,3468.8,3468.4,0.57641]
[1736972614966,2.71439613,3468.9,3468.0,1.8367]
[1736972615183,0.57639,3468.7,3468.0,1.8367]
[1736972615373,0.57639,3468.7,3468.3,0.57643]
[1736972615777,0.57639,3468.7,3468.4,0.57642]
[1736972616077,2.71439613,3468.9,3468.3,0.57643]
[1736972616078,0.5764,3468.6,3468.3,0.57643]
[1736972616266,0.57638,3468.7,3468.4,0.57643]
[1736972616466,2.71439613,3468.9,3468.0,1.8367]
[1736972616666,0.57643,3468.4,3468.1,0.57647]
[1736972616876,0.57642,3468.5,3468.2,0.57645]
[1736972617072,0.57641,3468.6,3468.3,0.57644]
[1736972617277,4.1467,3469.2,3468.0,1.8367]
[1736972617278,4.1467,3469.2,3468.4,3.2078]
[1736972617571,4.1467,3469.2,3468.0,1.8367]
[1736972617779,0.5764,3468.6,3468.2,3.2078]
[1736972618073,1.44079,3469.1,3468.2,3.2078]
[1736972618275,0.57644,3468.3,3468.1,0.57647]
[1736972618878,3.2078,3468.8,3468.0,1.8367]
[1736972619380,0.57648,3468.1,3468.0,0.8864]
[1736972619775,2.71439613,3468.5,3467.8,3.2078]
[1736972620074,1.44116,3468.2,3467.4,1.8461]
[1736972620276,6.51028,3468.4,3467.5,40.8]
[1736972620581,6.51028,3468.4,3467.7,0.57654]
[1736972620582,0.57652,3467.9,3467.7,0.57654]
[1736972621074,0.57653,3467.8,3467.7,0.57654]
[1736972621580,6.51028,3468.4,3467.5,40.8]
[1736972621882,0.57659,3467.4,3467.3,3.2078]
[1736972622177,0.57659,3467.4,3467.0,0.8504]
[1736972622477,0.57657,3467.6,3467.5,0.57657]
[1736972623283,1.44116,3468.3,3467.3,3.2078]
[1736972623469,0.57658,3467.5,3467.4,3.2078]
[1736972623669,3.2078,3467.6,3466.4,3.2078]
[1736972623869,2.71439613,3467.3,3466.6,0.09016243]
[1736972624069,3.2078,3467.2,3466.4,3.2078]
[1736972624374,0.57673,3466.6,3466.5,40.8]
[1736972625679,0.57682,3466.1,3465.6,0.57689]
[1736972625876,0.57682,3466.1,3466.0,0.57683]
[1736972626073,0.57682,3466.1,3466.0,3.78463]
[1736972626886,0.57686,3465.8,3465.7,1.46687]
[1736972627077,0.57686,3465.8,3465.7,0.89]
[1736972628878,1.44191,3466.4,3465.7,0.89]
[1736972629084,0.8553,3466.5,3466.0,3.2078]
[1736972629287,0.57681,3466.1,3466.0,3.2078]
[1736972629686,0.57686,3465.8,3465.7,0.89]
[1736972630784,0.57689,3465.6,3465.5,3.2078]
[1736972630991,0.57698,3465.1,3465.0,4.0736]
[1736972631583,1.44227,3465.6,3465.0,4.0736]
[1736972631783,0.57697,3465.2,3465.0,4.65058]
[1736972632183,0.57697,3465.2,3465.0,1.44278]
[1736972632979,4.069,3465.7,3465.0,0.8658]
[1736972633183,0.57688,3465.7,3465.2,0.57696]
[1736972633494,0.57687,3465.8,3465.2,0.57696]
[1736972633784,0.57688,3465.7,3465.5,0.5769]
[1736972634091,0.57687,3465.8,3465.5,0.5769]
[1736972634295,0.57685,3465.9,3465.6,0.57688]
[1736972634589,0.57689,3465.7,3465.4,0.57692]
[1736972634783,3.2078,3466.1,3465.3,3.2078]
[1736972635295,0.57683,3466.0,3465.8,0.57685]
[1736972635779,3.2078,3466.1,3465.4,40.8]
[1736972635983,3.2078,3466.1,3466.0,0.57683]
[1736972636289,0.8578,3466.7,3465.7,3.2078]
[1736972636494,0.8578,3466.7,3465.5,4.15667613]
[1736972636495,1.4543,3466.8,3466.6,0.57673]
[1736972636792,1.4543,3466.8,3466.3,3.2078]
[1736972636793,0.57672,3466.7,3466.3,3.2078]
[1736972636994,0.8776,3466.8,3466.3,3.2078]
[1736972637286,0.57676,3466.4,3466.3,3.2078]
[1736972637486,0.57678,3466.3,3466.1,1.4551]
[1736972637791,0.57677,3466.4,3466.2,0.57678]
[1736972638091,4.0854,3466.8,3466.1,0.8783]
[1736972638493,0.57671,3466.7,3466.2,0.57678]
[1736972638694,0.57679,3466.3,3466.1,0.57681]
[1736972638890,0.57679,3466.2,3466.0,0.57682]
[1736972639090,4.0854,3466.8,3465.8,3.2078]
[1736972639291,0.57676,3466.4,3465.8,3.2078]
[1736972639488,0.57679,3466.3,3466.1,0.5768]
[1736972639789,0.57676,3466.4,3466.3,0.57677]
[1736972639994,4.0854,3466.8,3466.1,3.2078]
[1736972640196,0.57677,3466.4,3466.3,0.57677]
[1736972640494,4.0854,3466.8,3466.1,3.2078]
[1736972640690,0.57685,3465.9,3465.8,0.57686]
[1736972640993,0.57679,3466.2,3466.1,0.5768]
[1736972641195,0.57679,3466.3,3466.1,0.5768]
[1736972641393,0.57682,3466.1,3465.9,0.57683]
[1736972641692,0.57679,3466.2,3466.1,0.57681]
[1736972642084,0.57681,3466.1,3466.0,0.57682]
[1736972642398,0.57681,3466.1,3466.0,0.57683]
[1736972642687,0.5768,3466.2,3466.0,0.57682]
[1736972643189,0.5768,3466.2,3466.0,0.57681]
[1736972643392,3.2078,3466.4,3465.8,3.2078]
[1736972643593,0.8776,3466.8,3466.5,0.57673]
[1736972643594,0.57672,3466.7,3466.5,0.57673]
[1736972644195,0.57677,3466.7,3466.5,0.57679]
[1736972644494,0.57678,3466.7,3466.5,0.57679]
[1736972644797,0.57678,3466.7,3466.4,0.5768]
[1736972645294,2.71439613,3466.5,3465.9,0.927]
[1736972645482,2.71439613,3466.5,3465.5,3.2078]
[1736972645687,2.71439613,3466.5,3466.1,0.57686]
[1736972645887,0.57685,3466.2,3466.1,0.57686]
[1736972646601,0.57687,3466.1,3466.0,0.57687]
[1736972647195,0.57689,3466.0,3465.9,0.5769]
[1736972647389,0.57692,3465.8,3465.7,0.57693]
[1736972648395,0.9103,3466.0,3465.1,4.65036]
[1736972648594,1.48719,3466.0,3465.9,0.5769]
[1736972648799,4.1181,3466.0,3465.4,40.8]
[1736972649091,0.57697,3465.6,3465.5,0.57696]
[1736972649497,2.85098105,3465.6,3465.5,0.57696]
[1736972649695,0.577,3465.4,3465.3,0.57699]
[1736972649887,6.05877105,3465.6,3465.5,0.57697]
[1736972650194,3.78476,3465.6,3465.5,0.57697]
[1736972650392,3.2078,3465.6,3465.5,0.57697]
[1736972650795,0.9103,3466.0,3465.9,0.5769]
[1736972650992,3.78467,3466.2,3466.1,0.57687]
[1736972651299,0.57689,3466.1,3466.0,0.57688]
[1736972651496,0.57692,3465.9,3465.8,0.5769]
[1736972651693,0.57695,3465.7,3465.6,0.57695]
[1736972651889,2.27401105,3465.8,3465.1,5.55477]
[1736972652092,0.57697,3465.6,3465.5,0.57695]
[1736972652295,0.577,3465.4,3465.3,0.57699]
[1736972652493,5.48181105,3465.8,3465.1,0.9044]
[1736972652494,3.20961105,3465.5,3465.1,0.9044]
[1736972652697,0.9356,3465.5,3465.4,0.57698]
[1736972653295,3.2078,3465.8,3465.7,0.57693]
[1736972653494,2.27401105,3466.1,3465.2,1.44255]
[1736972653688,2.27401105,3466.1,3465.4,4.65024]
[1736972653893,0.57691,3466.0,3465.9,0.57689]
[1736972654294,2.27401105,3466.1,3465.1,2.34696]
[1736972654505,2.85096105,3465.7,3465.6,0.57694]
[1736972654701,0.57698,3465.6,3465.5,0.57696]
[1736972655101,0.57699,3465.4,3465.3,0.57698]
[1736972655500,0.57697,3465.6,3465.5,0.57696]
[1736972655800,0.57694,3465.7,3465.6,0.57695]
[1736972656604,0.57696,3465.6,3465.5,0.57696]
[1736972656902,3.2078,3465.8,3465.7,0.57693]
[1736972657705,0.9356,3466.2,3465.7,3.2078]
[1736972657903,1.51246,3466.2,3466.1,0.57687]
[1736972658096,0.9356,3466.2,3466.1,0.57687]
[1736972658303,6.05860105,3466.6,3466.5,0.5768]
[1736972658506,5.48181105,3466.6,3466.0,1.44219]
[1736972658704,0.57681,3466.5,3466.4,0.57682]
[1736972658999,0.57682,3466.4,3466.3,0.57683]
[1736972659395,0.5768,3466.5,3466.1,0.57686]
[1736972659605,6.05866105,3466.2,3466.1,0.57686]
[1736972659803,5.48181105,3466.2,3465.7,40.8]
[1736972659999,5.48181105,3466.2,3465.6,2.71237]
[1736972660206,0.57687,3466.1,3466.0,0.57688]
[1736972661007,5.48181105,3466.2,3465.4,3.2078]
[1736972661305,0.57689,3466.0,3465.8,0.5769]
[1736972661510,6.05867105,3466.2,3466.1,0.57687]
[1736972661703,0.57687,3466.1,3466.0,0.57688]
[1736972662100,0.57689,3466.0,3465.9,0.57689]
[1736972662708,5.48181105,3466.2,3465.0,3.2078]
[1736972663008,0.9064,3466.3,3465.1,0.34948835]
[1736972663009,3.2078,3465.8,3465.1,0.34948835]
[1736972663208,0.57695,3465.7,3465.6,0.57694]
[1736972663408,3.2078,3465.8,3465.2,0.9278]
[1736972663911,0.57693,3465.7,3465.6,0.57695]
[1736972664301,0.57697,3465.6,3465.5,0.57696]
[1736972665304,3.2078,3465.8,3465.2,0.9278]
[1736972665609,0.57695,3465.7,3465.6,0.57694]
[1736972665808,3.78473,3465.8,3465.7,0.57693]
[1736972666710,0.57695,3465.7,3465.6,0.57694]
[1736972667509,3.2078,3465.8,3465.2,0.9278]
[1736972667804,0.57693,3465.7,3465.6,0.57695]
[1736972668411,3.2078,3465.8,3465.2,0.9278]
[1736972668609,0.57697,3465.6,3465.5,0.57696]
[1736972669317,3.2078,3465.8,3465.2,0.9278]
[1736972669609,0.57695,3465.7,3465.6,0.57694]
[1736972669801,3.2078,3465.8,3465.2,0.9278]
[1736972670002,0.57696,3465.6,3465.5,0.57696]
[1736972670409,0.57698,3465.5,3465.4,0.57697]
[1736972671204,0.57698,3465.5,3465.2,0.9278]
[1736972671205,0.577,3465.3,3465.2,0.9278]
[1736972671410,0.577,3465.3,3465.2,1.50482]
[1736972673606,4.63601105,3465.6,3464.7,42.24275]
[1736972673904,0.57701,3465.3,3465.2,0.57699]
[1736972674212,3.19361105,3465.6,3464.7,42.24275]
[1736972674409,0.57705,3465.1,3465.0,0.57703]
[1736972676105,0.57703,3465.2,3465.1,0.577]
[1736972676314,0.57701,3465.3,3465.2,0.577]
[1736972677915,0.57511366,3465.3,3465.2,0.577]
[1736972678114,3.2078,3465.4,3464.8,1.44269]
[1736972678315,3.7848,3465.4,3465.3,0.577]
[1736972678515,0.577,3465.4,3465.3,0.577]
[1736972678707,3.19361105,3465.6,3465.0,1.44261]
[1736972678908,0.57701,3465.3,3465.2,0.57701]
[1736972679108,0.57704,3465.2,3465.1,0.57703]
[1736972679416,0.57705,3465.1,3465.0,0.57704]
[1736972679806,0.57703,3465.2,3465.1,0.57702]
[1736972680006,0.57703,3465.2,3464.6,42.24279]
[1736972680307,0.57703,3465.2,3465.0,0.57704]
[1736972680615,3.2078,3465.5,3465.1,0.57703]
[1736972680811,0.57701,3465.3,3465.2,0.57701]
[1736972681006,0.57692,3465.8,3465.6,0.57694]
[1736972681204,3.78471,3465.9,3465.1,1.44259]
[1736972681415,3.78471,3465.9,3465.7,0.57692]
[1736972681804,3.20981105,3466.1,3465.5,1.44242]
[1736972682014,0.57689,3466.0,3465.8,0.57691]
[1736972682910,0.57689,3466.0,3465.4,0.9098]
[1736972683111,0.57689,3466.0,3465.7,0.57692]
[1736972683708,0.57691,3465.9,3465.4,0.9098]
[1736972683905,0.57691,3465.9,3465.7,0.57693]
[1736972684113,3.20981105,3466.1,3465.4,0.9098]
[1736972684305,0.57691,3465.9,3465.6,0.57693]
[1736972684511,0.57691,3465.9,3465.4,0.9098]
[1736972684711,0.57691,3465.9,3465.6,0.57694]
[1736972684919,0.57697,3465.5,3465.3,0.57699]
[1736972685518,0.57697,3465.5,3465.2,0.577]
[1736972685915,0.57699,3465.4,3465.3,0.577]
[1736972686209,2.27401105,3465.8,3465.3,0.577]
[1736972686511,0.57698,3465.5,3465.3,0.577]
[1736972686819,0.57696,3465.6,3465.4,0.57697]
[1736972687019,0.57697,3465.5,3465.4,0.57697]
[1736972688224,2.27401105,3465.8,3465.1,0.8439]
[1736972688522,0.57699,3465.4,3465.3,0.57698]
[1736972689613,0.57702,3465.3,3465.2,0.577]
[1736972690119,2.27401105,3465.5,3465.1,0.8439]
[1736972690420,0.57702,3465.2,3465.1,1.42092]
[1736972690614,0.57702,3465.2,3465.1,1.86090926]
[1736972690821,0.57702,3465.2,3465.1,1.86090754]
[1736972691018,0.57702,3465.2,3465.1,1.51112997]
[1736972691322,0.57702,3465.2,3465.1,1.51112743]
[1736972691817,0.57702,3465.2,3465.1,1.86093747]
[1736972692722,0.57702,3465.2,3465.1,1.01703747]
[1736972695019,0.57702,3465.2,3465.1,0.57702]
[1736972695215,0.57702,3465.2,3465.1,0.92680985]
[1736972695612,2.31199,3465.4,3465.3,0.577]
[1736972695818,3.2078,3466.6,3465.4,1.44246]
[1736972696023,0.57676,3466.8,3466.7,0.57675]
[1736972696217,0.57672,3467.0,3466.5,3.2078]
[1736972696422,1.7229,3467.5,3466.9,3.2078]
[1736972696726,2.27401105,3467.4,3467.0,0.57672]
[1736972696913,2.85067105,3467.4,3466.9,40.8]
[1736972697120,2.27401105,3467.7,3467.0,0.34880147]
[1736972697315,0.57663,3467.6,3467.5,0.57662]
[1736972697523,2.85062105,3467.7,3467.0,1.4418]
[1736972697928,2.85062105,3467.7,3467.6,0.57662]
[1736972698220,2.85062105,3467.7,3467.0,1.4418]
[1736972698221,2.27401105,3467.7,3467.0,1.4418]
[1736972698428,2.27401105,3468.0,3467.3,3.2078]
[1736972698722,2.27401105,3468.0,3467.9,0.57657]
[1736972699521,5.48181105,3468.3,3468.2,0.57652]
[1736972699824,2.85046105,3468.6,3468.3,0.57649]
[1736972700024,2.85046105,3468.6,3467.7,4.6493]
[1736972700025,2.27401105,3468.6,3467.7,4.6493]
[1736972700230,2.27401105,3468.6,3468.2,0.5765]
[1736972700523,2.27401105,3468.3,3467.7,3.2078]
[1736972700820,2.27401105,3468.3,3468.1,0.57653]
[1736972701424,2.27401105,3468.3,3468.2,0.57652]
[1736972701823,2.27401105,3468.6,3468.5,0.57647]
[1736972702027,2.27401105,3469.2,3469.0,0.57638]
[1736972702220,2.27401105,3469.2,3469.0,0.57637]
[1736972702829,2.27401105,3469.2,3469.1,0.57637]
[1736972703027,2.27401105,3469.2,3468.6,0.9134]
[1736972703228,2.27401105,3469.2,3468.9,0.57639]
[1736972703427,0.57644,3468.7,3468.5,3.2078]
[1736972703730,3.2078,3468.8,3468.5,0.57646]
[1736972704024,0.57643,3468.8,3468.4,0.57647]
[1736972704220,0.57643,3468.8,3467.9,3.2078]
[1736972704424,2.27401105,3469.0,3467.9,3.2078]
[1736972704626,0.57641,3468.6,3468.2,0.57646]
[1736972704827,0.57641,3468.6,3468.3,0.57645]
[1736972705027,0.57641,3468.6,3468.2,0.57645]
[1736972705226,2.27401105,3468.7,3468.1,0.57648]
[1736972705227,0.57642,3468.5,3468.1,0.57648]
[1736972705530,2.27401105,3468.7,3468.0,0.57649]
[1736972705727,0.5764,3468.6,3468.2,0.57646]
[1736972705927,0.57642,3468.5,3468.1,0.57647]
[1736972706133,0.57644,3468.4,3468.0,0.57649]
[1736972706427,2.27401105,3468.7,3468.2,0.57645]
[1736972706428,0.57641,3468.6,3468.2,0.57645]
[1736972706629,2.27401105,3468.7,3468.2,0.57645]
[1736972706934,0.57643,3468.4,3468.0,0.57649]
[1736972707234,0.57643,3468.4,3468.1,0.57648]
[1736972707429,0.57642,3468.5,3468.1,0.57648]
[1736972707734,2.27401105,3468.7,3467.9,3.2078]
[1736972708030,0.57639,3468.6,3468.1,0.57646]
[1736972708228,0.57642,3468.5,3468.1,0.57646]
[1736972709032,2.27401105,3468.7,3468.1,0.57646]
[1736972709330,2.27401105,3468.4,3467.9,3.2078]
[1736972709532,2.27401105,3468.0,3467.9,3.2078]
[1736972709929,0.8477,3468.3,3467.9,3.7843]
[1736972709930,0.57647,3468.2,3467.9,3.7843]
[1736972710231,3.12171105,3468.3,3467.9,3.2078]
[1736972710421,2.27401105,3468.6,3467.9,3.2078]
[1736972710731,2.27401105,3468.6,3468.5,0.57641]
[1736972710931,0.8878,3469.4,3468.3,3.2078]
[1736972711130,3.2078,3469.6,3467.2,3.78141]
[1736972711131,5.48181105,3469.6,3469.0,3.2078]
[1736972711325,0.57627,3469.4,3469.1,0.5763]
[1736972711632,5.48181105,3469.6,3469.0,3.2078]
[1736972711633,0.57631,3469.1,3469.0,3.2078]
[1736972711832,0.57643,3468.4,3468.3,3.2078]
[1736972712228,2.85044105,3468.4,3468.3,3.2078]
[1736972712729,2.27401105,3468.4,3468.3,3.2078]
[1736972713237,2.27401105,3468.7,3468.3,3.2078]
[1736972713537,0.57637,3468.8,3468.5,0.5764]
[1736972713733,0.57637,3468.8,3468.3,3.2078]
[1736972713734,3.11511105,3469.0,3468.3,3.2078]
[1736972714029,2.27401105,3469.0,3468.8,0.57635]
[1736972714334,0.9127,3469.1,3469.0,0.57633]
[1736972714731,0.8833,3469.6,3469.4,0.57626]
[1736972714934,3.78402,3469.7,3469.5,0.57624]
[1736972715438,3.2078,3469.7,3468.9,3.2078]
[1736972715637,0.5763,3469.2,3468.9,3.2078]
[1736972715930,0.57633,3469.0,3468.7,0.57637]
[1736972716233,0.57639,3468.7,3468.5,3.78421]
[1736972716434,2.27401105,3468.9,3468.5,3.2078]
[1736972716629,0.57639,3468.6,3468.5,3.2078]
[1736972716826,0.57639,3468.7,3468.5,3.78421]
[1736972717031,0.57639,3468.6,3468.5,3.78421]
[1736972717334,0.57639,3468.6,3468.5,3.2078]
[1736972718034,0.57636,3468.8,3468.5,3.2078]
[1736972718231,0.57638,3468.8,3468.6,0.57638]
[1736972718940,0.57638,3468.7,3468.6,0.57638]
[1736972719126,4.58448105,3469.4,3468.5,3.2078]
[1736972719333,0.57639,3468.6,3468.5,3.2078]
[1736972720637,0.5765,3468.0,3467.9,3.2078]
[1736972721835,0.5765,3468.0,3467.9,3.78431]
[1736972722238,0.5765,3468.0,3467.9,3.2078]
[1736972722435,0.5765,3468.0,3467.8,0.9134]
[1736972722436,0.57656,3467.6,3467.5,44.58437]
[1736972722738,0.57656,3467.6,3467.5,3.2078]
[1736972722939,2.27401105,3467.8,3467.0,3.2078]
[1736972723142,0.57664,3467.1,3467.0,3.2078]
[1736972724435,1.44167,3467.0,3466.5,3.2078]
[1736972724639,1.44167,3467.0,3465.2,3.2078]
[1736972724640,5.48181105,3466.8,3465.2,3.2078]
[1736972724840,2.27401105,3465.8,3465.2,3.2078]
[1736972725040,2.27401105,3465.8,3465.3,41.37693]
[1736972725041,0.57689,3465.7,3465.3,41.37693]
[1736972725342,2.27401105,3465.8,3465.3,40.8]
[1736972725544,0.921,3466.1,3465.2,5.48181105]
[1736972725746,2.27401105,3466.5,3465.9,0.57684]
[1736972726040,2.27401105,3466.5,3465.6,3.2078]
[1736972726245,0.921,3466.6,3465.6,3.2078]
[1736972726246,3.2078,3466.7,3465.8,2.27401105]
[1736972726438,3.2078,3466.7,3466.4,0.57675]
[1736972726739,2.27401105,3467.1,3466.2,3.2078]
[1736972726945,0.57668,3467.0,3466.6,0.57672]
[1736972727539,2.27401105,3467.1,3466.6,0.57672]
[1736972727743,2.27401105,3467.1,3466.2,3.2078]
[1736972727936,0.57669,3466.9,3466.2,3.2078]
[1736972728132,4.07601105,3467.4,3466.7,3.2078]
[1736972728340,1.4976,3467.4,3467.1,0.57663]
[1736972728738,0.57656,3467.6,3467.3,0.57661]
[1736972728943,2.85056105,3467.7,3467.1,3.2078]
[1736972729142,2.27401105,3467.7,3467.1,3.2078]
[1736972729341,0.57663,3467.2,3467.1,3.2078]
[1736972729543,2.27401105,3467.4,3466.8,1.48788]
[1736972729847,0.57665,3467.1,3466.8,1.48788]
[1736972730039,2.27401105,3467.4,3466.8,0.9112]
[1736972730040,0.57668,3466.9,3466.8,0.9112]
[1736972730237,2.27401105,3467.1,3466.5,3.2078]
[1736972730442,0.57673,3466.6,3466.5,3.2078]
[1736972731144,0.57672,3466.7,3466.5,3.2078]
[1736972731651,0.57672,3466.7,3466.0,3.78463]
[1736972731652,0.57679,3466.3,3466.0,3.78463]
[1736972731948,0.57681,3466.1,3466.0,3.2078]
[1736972732245,0.5768,3466.2,3466.0,3.2078]
[1736972732547,0.57681,3466.1,3466.0,3.2078]
[1736972733449,0.57678,3466.3,3466.0,3.2078]
[1736972733641,0.57669,3466.9,3466.6,0.57672]
[1736972733850,0.57669,3466.9,3465.8,0.9044]
[1736972733851,0.57667,3467.0,3466.8,3.2078]
[1736972734046,2.27401105,3467.0,3466.4,3.2078]
[1736972734244,0.57674,3466.5,3466.4,3.2078]
[1736972734639,2.27401105,3466.7,3466.4,44.0078]
[1736972734847,2.85073105,3466.7,3466.4,44.58455]
[1736972735147,0.57673,3466.6,3466.4,44.0078]
[1736972735541,0.57674,3466.5,3466.4,44.0078]
[1736972735749,2.27401105,3466.7,3466.4,44.0078]
[1736972735952,0.57674,3466.5,3466.4,44.0078]
[1736972736446,0.57683,3466.1,3465.9,3.2078]
[1736972736835,2.27401105,3466.2,3465.9,3.2078]
[1736972736836,0.57683,3466.0,3465.9,3.2078]
[1736972737036,2.27401105,3466.2,3465.5,0.57691]
[1736972737037,0.57681,3466.1,3465.5,0.57691]
[1736972737241,0.57688,3465.8,3465.5,0.57691]
[1736972737441,2.27401105,3465.9,3465.4,3.2078]
[1736972737644,2.27401105,3465.9,3465.4,3.78471]
[1736972737846,0.57691,3465.6,3465.4,3.78471]
[1736972738049,0.57691,3465.5,3465.4,3.2078]
[1736972738351,2.27401105,3465.9,3465.4,3.2078]
[1736972738554,0.57691,3465.5,3465.4,3.2078]
[1736972739452,0.57696,3465.2,3465.1,0.8372]
[1736972739949,0.57696,3465.2,3465.1,1.41418]
[1736972740147,3.78466,3465.9,3465.7,0.57687]
[1736972740343,0.57688,3465.7,3465.3,3.2078]
[1736972740540,5.48181105,3465.9,3465.3,3.2078]
[1736972740754,0.57688,3465.7,3465.6,0.57689]
[1736972740954,0.5769,3465.6,3465.5,0.5769]
[1736972741250,0.57689,3465.7,3465.5,0.5769]
[1736972741452,0.57689,3465.7,3465.6,0.57689]
[1736972741648,2.27401105,3465.9,3465.3,3.2078]
[1736972741857,0.57696,3465.2,3465.1,0.8372]
[1736972742150,0.57696,3465.2,3465.1,41.6372]
[1736972742749,0.57696,3465.2,3465.1,0.8372]
[1736972743650,0.57699,3465.1,3465.0,0.57699]
[1736972744050,0.57699,3465.0,3464.9,44.0078]